fUSD/lending_fUSD_20260404
["ID","MTS","AMOUNT","RATE_DAILY","PERIOD"]
[419736345,1775344241857,-500.0,0.00013698,2]
[419736346,1775344241869,-500.0,0.00013698,2]
[419736347,1775344241880,-500.0,0.00013698,2]
[419736348,1775344241890,-500.0,0.00013698,2]
[419736349,1775344241901,-500.0,0.00013698,2]
[419736350,1775344241913,-500.0,0.00013698,2]
[419736351,1775344241928,-372.04738968,0.00013698,2]
[419736352,1775344241939,-500.0,0.00013698,2]
[419736353,1775344241950,-500.0,0.00013698,2]
[419736354,1775344241961,-500.0,0.00013698,2]
[419736355,1775344241972,-500.0,0.00013698,2]
[419736356,1775344241982,-500.0,0.00013698,2]
[419736357,1775344241992,-500.0,0.00013698,2]
[419736358,1775344242002,-500.0,0.00013698,2]
[419736359,1775344242011,-500.0,0.00013698,2]
[419736360,1775344242021,-500.0,0.00013698,2]
[419736361,1775344242031,-500.0,0.00013698,2]
[419736362,1775344242041,-500.0,0.00013698,2]
[419736363,1775344242050,-500.0,0.00013698,2]
[419736364,1775344242061,-500.0,0.00013698,2]
[419736365,1775344242070,-500.0,0.00013698,2]
[419736366,1775344242080,-500.0,0.00013698,2]
[419736367,1775344242092,-500.0,0.00013698,2]
[419736368,1775344242102,-5106.26,0.00013699,2]
[419736369,1775344242113,-189.86,0.00013699,2]
[419736370,1775344242123,-436.94208078,0.00013699,2]
[419736371,1775344242133,-150.0,0.000137,2]
[419736372,1775344242143,-218.0609158,0.000137,2]
[419736373,1775344242153,-26092.91719987,0.00013822,2]
[419736374,1775344242163,-46128.81141462,0.00013878,2]
[419736375,1775344242173,-587.0,0.00013972,2]
[419736376,1775344242183,-2000.0,0.00014016,2]
[419736377,1775344242193,-1500.0,0.00014016,2]
[419736378,1775344242204,-2000.0,0.00014016,2]
[419736379,1775344242215,-2351.0,0.00014017,2]
[419736380,1775344242226,-336.1557613,0.00014087,2]
[419736381,1775344242236,-3269.6663019,0.00014087,2]
[419736382,1775344242246,-150.0,0.00014147,2]
[419736383,1775344242257,-26092.91719987,0.00014237,2]
[419736384,1775344242267,-46128.81141462,0.00014282,2]
[419736385,1775344242277,-5106.26,0.00014384,2]
[419736386,1775344242287,-1115.92139421,0.00014564,2]
[419736387,1775344242297,-2500.0,0.00014564,2]
[419736388,1775344242307,-26092.91719987,0.00014653,2]
[419736389,1775344242317,-46128.81141462,0.00014687,2]
[419736390,1775344242327,-500.0,0.00014705,2]
[419736391,1775344242337,-160.0,0.00014705,2]
[419736392,1775344242347,-289.5275225,0.00014908,2]
[419736393,1775344242358,-300.0,0.00015,2]
[419736394,1775344242369,-3044.58224996,0.00015,2]
[419736395,1775344242379,-223387.1907086,0.00015,7]
[419736396,1775344242389,-5106.26,0.00015068,2]
[419736397,1775344242400,-800.0,0.00015068,2]
[419736398,1775344242410,-26092.91719987,0.00015069,2]
[419736399,1775344242421,-46128.81141462,0.00015091,2]
[419736400,1775344242432,-1497.28075362,0.00015112,2]
[419736401,1775344242443,-471.0,0.00015146,2]
[419736402,1775344242454,-2000.0,0.00015194,2]
[419736403,1775344242466,-471.0,0.00015278,2]
[419736404,1775344242476,-1517.64,0.000153,2]
[419736405,1775344242487,-496.63,0.00015323,2]
[419736406,1775344242497,-471.0,0.00015334,2]
[419736407,1775344242507,-823.0,0.00015344,2]
[419736408,1775344242517,-512.53794019,0.000154,2]
[419736409,1775344242527,-471.0,0.00015412,2]
[419736410,1775344242537,-3292.0,0.00015418,2]
[419736411,1775344242547,-26092.91719987,0.00015484,2]
[419736412,1775344242557,-768.85683146,0.000155,3]
[419736413,1775344242567,-1231.35459603,0.000155,2]
[419736414,1775344242577,-4000.0,0.00015507,2]
[419736415,1775344242587,-471.0,0.00015575,2]
[419736416,1775344242597,-496.63,0.00015597,2]
[419736417,1775344242607,-471.0,0.00015601,2]
[419736418,1775344242617,-471.0,0.0001561,2]
[419736419,1775344242626,-471.0,0.00015685,2]
[419736420,1775344242636,-471.0,0.0001569,2]
[419736421,1775344242647,-500.0,0.000157,5]
[419736422,1775344242657,-102159.95188267,0.0001572,2]
[419736423,1775344242667,-5106.26,0.00015753,2]
[419736424,1775344242677,-151.3,0.00015779,2]
[419736425,1775344242687,-151.3,0.00015779,2]
[419736426,1775344242697,-151.3,0.00015779,2]
[419736427,1775344242708,-151.3,0.00015779,2]
[419736428,1775344242720,-500.0,0.000158,5]
[419736429,1775344242730,-2000.0,0.00015801,2]
[419736430,1775344242743,-471.0,0.00015827,2]
[419736431,1775344242753,-471.0,0.00015829,2]
[419736432,1775344242764,-471.0,0.0001583,2]
[419736433,1775344242775,-496.63,0.00015871,2]
[419736434,1775344242785,-471.0,0.00015878,2]
[419736435,1775344242794,-500.0,0.0001589,2]
[419736436,1775344242805,-500.0,0.0001589,2]
[419736437,1775344242815,-500.0,0.0001589,2]
[419736438,1775344242825,-500.0,0.0001589,2]
[419736439,1775344242835,-500.0,0.0001589,2]
[419736440,1775344242845,-500.0,0.0001589,2]
[419736441,1775344242855,-500.0,0.0001589,2]
[419736449,1775344243222,-500.0,0.0001589,2]
[419736450,1775344243233,-533.81087013,0.0001589,2]
[419736451,1775344243245,-4000.0,0.00015895,2]
[419736452,1775344243255,-1359.90515633,0.000159,2]
[419736453,1775344243266,-500.0,0.000159,5]
[419736454,1775344243277,-336.1557613,0.000159,2]
[419736455,1775344243289,-3269.6663019,0.000159,2]
[419736456,1775344243301,-26092.91719987,0.000159,2]
[419736457,1775344243312,-2000.0,0.00015901,2]
[419736458,1775344243322,-471.0,0.00015941,2]
[419736459,1775344243332,-293.95153836,0.00015943,2]
[419736460,1775344243344,-471.0,0.00015951,2]
[419736461,1775344243354,-5000.0,0.0001596,2]
[419736462,1775344243364,-501.3800559,0.00015973,2]
[419736463,1775344243376,-500.0,0.00015973,2]
[419736464,1775344243386,-640.4578624,0.00015973,2]
[419736465,1775344243396,-500.0,0.00015973,2]
[419736466,1775344243406,-500.0,0.00015973,2]
[419736467,1775344243417,-500.0,0.00015973,2]
[419736468,1775344243428,-500.0,0.00015973,2]
[419736469,1775344243440,-502.19050137,0.00015973,2]
[419736470,1775344243451,-500.0,0.00015973,2]
[419736471,1775344243461,-500.0,0.00015973,2]
[419736472,1775344243471,-500.0,0.00015973,2]
[419736473,1775344243482,-500.0,0.00015973,2]
[419736474,1775344243493,-160.71962936,0.00015973,2]
[419736475,1775344243503,-500.0,0.00015973,2]
[419736476,1775344243514,-500.0,0.00015973,2]
[419736477,1775344243526,-500.0,0.00015973,2]
[419736478,1775344243537,-592.74505703,0.0001599,2]
[419736479,1775344243547,-1307445.09267042,0.00016,2]
[419736480,1775344243563,-731.96201252,0.00016,2]
[419736481,1775344243908,-361.22993896,0.00016,2]
[419736482,1775344243944,-9858.316375,0.00016,2]
[419736509,1775344246832,-513.0,0.00013111,2]
[419736510,1775344246843,-34.460072,0.00014087,2]
[419736516,1775344398785,541.48,7.756e-05,2]
[419736517,1775344398981,541.48,8.164e-05,2]
[419736518,1775344399175,541.48,8.572e-05,2]
[419736519,1775344399362,541.48,8.98e-05,2]
[419736520,1775344399580,541.48,9.388e-05,2]
[419736521,1775344399768,541.48,9.797e-05,2]
[419736535,1775344848101,150.0,9.602e-05,2]
[419736536,1775345426439,-150.0,9.899e-05,2]
[419736537,1775345426464,-2960.0,9.918e-05,2]
[419736552,1775345432900,-2040.0,9.918e-05,2]
[419736553,1775345432912,-250.0,9.937e-05,2]
[419736554,1775345432924,-3676.67575332,0.0001014,2]
[419736555,1775345432935,-541.48,0.00010205,2]
[419736556,1775345432945,-300.0,0.00010384,2]
[419736557,1775345432954,-300.0,0.00010384,2]
[419736558,1775345432964,-1200.0,0.00010384,2]
[419736559,1775345432973,-300.0,0.00010384,2]
[419736560,1775345432987,-7379.61,0.00010385,2]
[419736561,1775345432997,-5000.0,0.00010448,2]
[419736562,1775345433007,-4361.13,0.0001057,2]
[419736563,1775345433017,-541.48,0.00010613,2]
[419736564,1775345433026,-1600.0,0.00010657,2]
[419736565,1775345433035,-1500.0,0.00010884,2]
[419736566,1775345433045,-879.65842586,0.00010887,2]
[419736567,1775345433054,-1950.0,0.00010888,2]
[419736568,1775345433064,-250.0,0.00010888,2]
[419736569,1775345433074,-250.0,0.00010888,2]
[419736570,1775345433083,-193.0,0.00010888,2]
[419736571,1775345433093,-5000.0,0.00010888,2]
[419736572,1775345433104,-1000.0,0.0001102,2]
[419736573,1775345433114,-150.0,0.0001102,2]
[419736574,1775345433124,-1061.25,0.00011021,2]
[419736575,1775345433134,-541.48,0.00011021,2]
[419736576,1775345433144,-1549.76,0.00011021,2]
[419736577,1775345433153,-299.99,0.00011021,2]
[419736578,1775345433163,-5033.73,0.00011021,2]
[419736579,1775345433173,-9999.99,0.00011021,2]
[419736580,1775345433182,-5081.68,0.00011021,2]
[419736581,1775345433192,-150.99,0.00011021,2]
[419736582,1775345433203,-6025.19,0.00011021,2]
[419736583,1775345433213,-999.99,0.00011021,2]
[419736584,1775345433223,-19999.99,0.00011021,2]
[419736585,1775345433233,-4999.99,0.00011021,2]
[419736586,1775345433243,-1061.25,0.00011295,2]
[419736587,1775345433253,-420.0,0.00011418,2]
[419736588,1775345433263,-300.0,0.00011418,2]
[419736589,1775345433274,-1680.0,0.00011422,2]
[419736590,1775345433284,-541.48,0.00011429,2]
[419736591,1775345433295,-229.44020132,0.00011455,2]
[419736592,1775345433305,-1061.25,0.00011569,2]
[419736593,1775345433316,-3056.72439185,0.00011587,2]
[419736594,1775345433326,-151.0,0.0001159,2]
[419736595,1775345433335,-151.0,0.0001159,2]
[419736596,1775345433345,-151.0,0.0001159,2]
[419736597,1775345433354,-151.0,0.0001159,2]
[419736598,1775345433364,-151.0,0.0001159,2]
[419736599,1775345433373,-151.0,0.0001159,2]
[419736600,1775345433384,-151.0,0.0001159,2]
[419736601,1775345433394,-151.0,0.0001159,2]
[419736602,1775345433404,-151.0,0.0001159,2]
[419736603,1775345433414,-151.0,0.0001159,2]
[419736604,1775345433423,-151.0,0.0001159,2]
[419736605,1775345433435,-151.0,0.0001159,2]
[419736606,1775345433445,-151.0,0.0001159,2]
[419736607,1775345433455,-151.0,0.0001159,2]
[419736608,1775345433464,-151.0,0.0001159,2]
[419736609,1775345433473,-151.0,0.0001159,2]
[419736610,1775345433483,-151.0,0.0001159,2]
[419736611,1775345433493,-151.0,0.0001159,2]
[419736612,1775345433502,-151.0,0.0001159,2]
[419736613,1775345433513,-151.0,0.0001159,2]
[419736614,1775345433522,-151.0,0.0001159,2]
[419736615,1775345433532,-151.0,0.0001159,2]
[419736616,1775345433541,-151.0,0.0001159,2]
[419736617,1775345433551,-500.0,0.00011596,2]
[419736618,1775345433560,-29925.9448528,0.00011596,2]
[419736619,1775345433569,-532.9299,0.00011597,2]
[419736620,1775345433578,-500.0,0.00011597,2]
[419736621,1775345433587,-2500.0,0.00011597,2]
[419736622,1775345433597,-186.54038241,0.00011597,2]
[419736623,1775345433607,-1100.0,0.000116,4]
[419736624,1775345433616,-46262.38313857,0.000116,2]
[419736625,1775345433626,-1198.0,0.00011649,2]
[419736626,1775345433635,-324.0,0.00011671,2]
[419736627,1775345433645,-336.15576131,0.00011673,2]
[419736628,1775345433654,-3269.6663019,0.00011673,2]
[419736629,1775345433664,-2200.0,0.000117,4]
[419736630,1775345433674,-731.18361116,0.00011761,2]
[419736631,1775345433684,-500.0,0.0001177,2]
[419736632,1775345433692,-500.0,0.0001177,2]
[419736633,1775345433702,-500.0,0.0001177,2]
[419736634,1775345433711,-557.14022691,0.0001177,2]
[419736635,1775345433722,-500.0,0.0001177,2]
[419736636,1775345433731,-500.0,0.0001177,2]
[419736637,1775345433742,-500.0,0.0001177,2]
[419736638,1775345433752,-555.69815838,0.0001177,2]
[419736639,1775345433762,-500.0,0.0001177,2]
[419736640,1775345433772,-195.27614268,0.0001177,2]
[419736641,1775345433782,-642.57789948,0.0001177,2]
[419736642,1775345433791,-500.0,0.0001177,2]
[419736643,1775345433800,-225773.49740529,0.00011771,2]
[419736644,1775345433813,-26288.40683813,0.00011771,2]
[419736645,1775345433824,-20008.08402362,0.00011771,2]
[419736646,1775345433836,-33421.36704267,0.00011771,2]
[419736651,1775345438546,-500.0,0.00011599,2]
[419736652,1775345438556,-500.0,0.00011599,2]
[419736653,1775345438566,-500.0,0.00011599,2]
[419736654,1775345438575,-102.63574172,0.00011599,2]
[419736655,1775345438599,-397.36425828,0.00011599,2]
[419736656,1775345438609,-8.38814639,0.00011599,2]
[419736657,1775345438620,-491.61185361,0.00011599,2]
[419736658,1775345438629,-500.0,0.00011599,2]
[419736659,1775345438638,-500.0,0.00011599,2]
[419736660,1775345438647,-411.87462202,0.00011599,2]
[419736661,1775345438659,-88.12537798,0.00011599,2]
[419736662,1775345438668,-500.0,0.00011599,2]
[419736663,1775345438678,-500.0,0.00011599,2]
[419736664,1775345438687,-500.0,0.00011599,2]
[419736665,1775345438697,-500.0,0.00011599,2]
[419736666,1775345438706,-500.0,0.00011599,2]
[419736667,1775345438715,-500.0,0.00011599,2]
[419736668,1775345438724,-500.0,0.00011599,2]
[419736669,1775345438734,-500.0,0.00011599,2]
[419736670,1775345438743,-500.0,0.00011599,2]
[419736671,1775345438752,-500.0,0.00011599,2]
[419736672,1775345438761,-500.0,0.00011599,2]
[419736673,1775345438771,-500.0,0.00011599,2]
[419736674,1775345438780,-7.81915856,0.00011599,2]
[419736675,1775345438796,-492.18084144,0.00011599,2]
[419736676,1775345438805,-217.31395078,0.00011599,2]
[419736677,1775345438824,-282.68604922,0.00011599,2]
[419736678,1775345438834,-500.0,0.00011599,2]
[419736679,1775345438843,-500.0,0.00011599,2]
[419736680,1775345438853,-61.05358187,0.00011599,2]
[419736681,1775345438864,-438.94641813,0.00011599,2]
[419736682,1775345438874,-500.0,0.00011599,2]
[419736684,1775345438883,-274.90250184,0.00011599,2]
[419736685,1775345438893,-500.0,0.00011599,2]
[419736686,1775345438902,-500.0,0.00011599,2]
[419736687,1775345438911,-500.0,0.0001177,2]
[419736688,1775345438920,-500.0,0.0001177,2]
[419736689,1775345438930,-1194508.64469029,0.00011771,2]
[419736690,1775345438939,-500.84962238,0.00011773,2]
[419736691,1775345438949,-500.0,0.00011773,2]
[419736693,1775345438959,-500.0,0.00011773,2]
[419736694,1775345438968,-576.67433813,0.00011773,2]
[419736696,1775345438978,-500.0,0.00011773,2]
[419736698,1775345438987,-263.24916206,0.00011773,2]
[419736700,1775345438997,-500.0,0.00011773,2]
[419736702,1775345439006,-500.0,0.00011773,2]
[419736703,1775345439015,-500.0,0.00011773,2]
[419736704,1775345439025,-159.94420326,0.00011773,2]
[419736705,1775345439034,-500.0,0.00011773,2]
[419736706,1775345439043,-165.01596632,0.00011773,2]
[419736707,1775345439052,-455.14370669,0.00011773,2]
[419736708,1775345439062,-500.0,0.00011773,2]
[419736709,1775345439071,-500.0,0.00011773,2]
[419736710,1775345439080,-500.0,0.00011773,2]
[419736711,1775345439091,-500.0,0.00011773,2]
[419736712,1775345439100,-500.0,0.00011773,2]
[419736713,1775345439109,-220.78759916,0.00011773,2]
[419736714,1775345439119,-3400.0,0.000118,4]
[419736715,1775345439128,-541.48,0.00011837,2]
[419736716,1775345439137,-1061.25,0.00011843,2]
[419736717,1775345439147,-3180.94599995,0.0001186,2]
[419736718,1775345439157,-520.0,0.00011867,2]
[419736719,1775345439167,-500.0,0.0001187,2]
[419736720,1775345439177,-4500.0,0.000119,4]
[419736721,1775345439186,-419.58,0.00011943,2]
[419736722,1775345439197,-1600.0,0.0001199,2]
[419736723,1775345439207,-29925.94485272,0.00012074,2]
[419736724,1775345439217,-46262.38313849,0.00012078,2]
[419736725,1775345439226,-1061.25,0.00012117,2]
[419736726,1775345439236,-503.9335937,0.00012144,2]
[419736727,1775345439245,-11231.0385,0.0001216,2]
[419736728,1775345439254,-1000.0,0.0001216,2]
[419736729,1775345439263,-541.48,0.00012246,2]
[419736730,1775345439273,-186.5403824,0.00012314,2]
[419736731,1775345439283,-1000.0,0.00012321,2]
[419736732,1775345439293,-386.01505148,0.00012321,2]
[419736733,1775345439303,-1000.0,0.00012321,2]
[419736734,1775345439312,-1000.0,0.00012321,2]
[419736735,1775345439322,-1000.0,0.00012321,2]
[419736736,1775345439690,-500.0,0.00012321,2]
[419736737,1775345439702,-1000.0,0.00012321,2]
[419736738,1775345439712,-551.21950508,0.00012321,2]
[419736739,1775345439721,-1000.0,0.00012321,2]
[419736740,1775345439730,-1000.0,0.00012321,2]
[419736741,1775345439740,-1000.0,0.00012321,2]
[419736742,1775345439749,-1000.0,0.00012321,2]
[419736743,1775345439758,-1061.25,0.00012391,2]
[419736744,1775345439767,-29925.94485272,0.00012552,2]
[419736745,1775345439777,-587.0,0.00012555,2]
[419736746,1775345439786,-46262.38313849,0.00012556,2]
[419736747,1775345439795,-2351.0,0.00012564,2]
[419736748,1775345439805,-541.48,0.00012654,2]
[419736749,1775345439815,-1061.25,0.00012665,2]
[419736750,1775345439824,-1998.78,0.00012771,2]
[419736751,1775345439833,-1500.0,0.00012868,2]
[419736752,1775345439843,-500.0,0.00012868,2]
[419736753,1775345439852,-500.0,0.00012868,2]
[419736754,1775345439861,-1500.0,0.00012868,2]
[419736755,1775345439871,-1500.0,0.00012868,2]
[419736756,1775345439880,-1061.2891124,0.00012939,2]
[419736757,1775345439890,-521.35022304,0.00013,2]
[419736758,1775345439899,-29925.94485272,0.00013031,2]
[419736759,1775345439908,-186.5403824,0.00013031,2]
[419736760,1775345439917,-46262.38313849,0.00013033,2]
[419736761,1775345439927,-541.48,0.00013062,2]
[419736762,1775345439936,-513.0,0.00013111,2]
[419736763,1775345439946,-1600.0,0.00013322,2]
[419736764,1775345439955,-2000.0,0.00013416,2]
[419736765,1775345439964,-1500.0,0.00013416,2]
[419736766,1775345439973,-2000.0,0.00013416,2]
[419736767,1775345439983,-3240.0,0.00013425,2]
[419736768,1775345439991,-541.48,0.0001347,2]
[419736769,1775345440000,-29925.94485272,0.00013509,2]
[419736770,1775345440010,-46262.38313849,0.00013511,2]
[419736771,1775345440019,-500.0,0.00013698,2]
[419736772,1775345440028,-500.0,0.00013698,2]
[419736773,1775345440037,-500.0,0.00013698,2]
[419736774,1775345440047,-500.0,0.00013698,2]
[419736775,1775345440056,-500.0,0.00013698,2]
[419736776,1775345440066,-500.0,0.00013698,2]
[419736777,1775345440076,-500.0,0.00013698,2]
[419736778,1775345440085,-500.0,0.00013698,2]
[419736779,1775345440094,-500.0,0.00013698,2]
[419736780,1775345440103,-500.0,0.00013698,2]
[419736781,1775345440113,-500.0,0.00013698,2]
[419736782,1775345440123,-500.0,0.00013698,2]
[419736783,1775345440132,-500.0,0.00013698,2]
[419736784,1775345440142,-448.74463116,0.00013698,2]
[419736785,1775345440151,-500.0,0.00013698,2]
[419736786,1775345440160,-500.0,0.00013698,2]
[419736787,1775345440170,-500.0,0.00013698,2]
[419736788,1775345440179,-500.0,0.00013698,2]
[419736789,1775345440188,-500.0,0.00013698,2]
[419736790,1775345440197,-500.0,0.00013698,2]
[419736791,1775345440206,-500.0,0.00013698,2]
[419736792,1775345440215,-500.0,0.00013698,2]
[419736793,1775345440224,-500.0,0.00013698,2]
[419736794,1775345440234,-500.0,0.00013698,2]
[419736795,1775345440243,-500.0,0.00013698,2]
[419736796,1775345440253,-500.0,0.00013698,2]
[419736797,1775345440262,-500.0,0.00013698,2]
[419736798,1775345440271,-419.46,0.00013698,2]
[419736799,1775345440280,-500.0,0.00013698,2]
[419736800,1775345440289,-500.0,0.00013698,2]
[419736801,1775345440299,-500.0,0.00013698,2]
[419736802,1775345440308,-500.0,0.00013698,2]
[419736803,1775345440318,-500.0,0.00013698,2]
[419736804,1775345440327,-500.0,0.00013698,2]
[419736805,1775345440336,-584.91992494,0.00013698,2]
[419736806,1775345440346,-500.0,0.00013698,2]
[419736807,1775345440355,-500.0,0.00013698,2]
[419736808,1775345440364,-500.0,0.00013698,2]
[419736809,1775345440373,-500.0,0.00013698,2]
[419736810,1775345440382,-398.43669082,0.00013698,2]
[419736811,1775345440392,-500.0,0.00013698,2]
[419736812,1775345440401,-372.04738968,0.00013698,2]
[419736813,1775345440410,-532.19,0.00013698,2]
[419736814,1775345440420,-532.19,0.00013698,2]
[419736815,1775345440429,-532.19,0.00013698,2]
[419736816,1775345440438,-532.19,0.00013698,2]
[419736817,1775345440448,-532.19,0.00013698,2]
[419736818,1775345440457,-532.19,0.00013698,2]
[419736819,1775345440467,-532.19,0.00013698,2]
[419736820,1775345440476,-532.19,0.00013698,2]
[419736821,1775345440485,-532.19,0.00013698,2]
[419736822,1775345440495,-532.19,0.00013698,2]
[419736823,1775345440504,-532.19,0.00013698,2]
[419736824,1775345440514,-532.19,0.00013698,2]
[419736825,1775345440523,-532.19,0.00013698,2]
[419736826,1775345440532,-532.19,0.00013698,2]
[419736827,1775345440543,-532.19,0.00013698,2]
[419736828,1775345440553,-532.19,0.00013698,2]
[419736829,1775345440563,-500.0,0.00013698,2]
[419736830,1775345440574,-268.57302384,0.00013698,2]
[419736831,1775345440583,-500.0,0.00013698,2]
[419736832,1775345440592,-500.0,0.00013698,2]
[419736833,1775345440602,-500.0,0.00013698,2]
[419736834,1775345440611,-500.0,0.00013698,2]
[419736835,1775345440620,-500.0,0.00013698,2]
[419736836,1775345440630,-500.0,0.00013698,2]
[419736837,1775345440640,-400.08,0.00013698,2]
[419736838,1775345440649,-500.0,0.00013698,2]
[419736839,1775345440658,-500.0,0.00013698,2]
[419736840,1775345440668,-500.0,0.00013698,2]
[419736841,1775345440677,-500.0,0.00013698,2]
[419736842,1775345440689,-500.0,0.00013698,2]
[419736843,1775345440699,-500.0,0.00013698,2]
[419736844,1775345440710,-500.0,0.00013698,2]
[419736845,1775345440720,-500.0,0.00013698,2]
[419736846,1775345440729,-500.0,0.00013698,2]
[419736847,1775345440739,-500.0,0.00013698,2]
[419736848,1775345440748,-375.83,0.00013698,2]
[419736849,1775345440758,-500.0,0.00013698,2]
[419736850,1775345440768,-500.0,0.00013698,2]
[419736851,1775345440777,-500.0,0.00013698,2]
[419736852,1775345440787,-500.0,0.00013698,2]
[419736853,1775345440796,-500.0,0.00013698,2]
[419736854,1775345440806,-500.0,0.00013698,2]
[419736855,1775345440816,-500.0,0.00013698,2]
[419736856,1775345440826,-500.0,0.00013698,2]
[419736857,1775345440835,-500.0,0.00013698,2]
[419736858,1775345440845,-500.0,0.00013698,2]
[419736859,1775345440854,-500.0,0.00013698,2]
[419736860,1775345440864,-500.0,0.00013698,2]
[419736861,1775345440873,-500.0,0.00013698,2]
[419736862,1775345440883,-500.0,0.00013698,2]
[419736863,1775345440892,-500.0,0.00013698,2]
[419736864,1775345440902,-500.0,0.00013698,2]
[419736865,1775345440911,-500.0,0.00013698,2]
[419736866,1775345440920,-500.0,0.00013698,2]
[419736867,1775345440930,-500.0,0.00013698,2]
[419736868,1775345440939,-500.0,0.00013698,2]
[419736869,1775345440949,-317.05428468,0.00013698,2]
[419736870,1775345440959,-436.94208078,0.00013699,2]
[419736871,1775345440968,-500.0,0.000137,2]
[419736872,1775345440978,-210.53546823,0.000137,2]
[419736873,1775345440989,-500.0,0.000137,2]
[419736874,1775345440998,-500.0,0.000137,2]
[419736875,1775345441009,-500.0,0.000137,2]
[419736876,1775345441020,-500.0,0.000137,2]
[419736877,1775345441031,-500.0,0.000137,2]
[419736878,1775345441040,-500.0,0.000137,2]
[419736879,1775345441050,-500.0,0.000137,2]
[419736880,1775345441060,-500.0,0.000137,2]
[419736881,1775345441071,-500.0,0.000137,2]
[419736882,1775345441080,-502.03101859,0.000137,2]
[419736883,1775345441090,-500.0,0.000137,2]
[419736884,1775345441100,-307.35572359,0.000137,2]
[419736885,1775345441110,-640.4578624,0.000137,2]
[419736886,1775345441120,-186.5403824,0.00013749,2]
[419736887,1775345441130,-336.1557613,0.00013787,2]
[419736888,1775345441140,-3269.6663019,0.00013787,2]
[419736889,1775345441151,-823.0,0.00013805,2]
[419736890,1775345441160,-3292.0,0.00013821,2]
[419736891,1775345441170,-541.48,0.00013878,2]
[419736892,1775345441180,-1115.92139421,0.00013964,2]
[419736893,1775345441190,-2500.0,0.00013964,2]
[419736894,1775345441200,-29925.94485272,0.00013987,2]
[419736895,1775345441209,-46262.38313849,0.00013989,2]
[419736896,1775345441219,-532.19,0.00014236,2]
[419736897,1775345441228,-1097.01949969,0.00014248,2]
[419736898,1775345441238,-513.6791618,0.00014248,2]
[419736899,1775345441247,-1000.0,0.00014248,2]
[419736900,1775345441257,-1000.0,0.00014248,2]
[419736901,1775345441266,-549.12089692,0.00014248,2]
[419736902,1775345441276,-1000.0,0.00014248,2]
[419736903,1775345441285,-172.69782273,0.00014248,2]
[419736904,1775345441295,-1000.0,0.00014248,2]
[419736905,1775345441304,-521.73297734,0.00014248,2]
[419736906,1775345441314,-685.51024034,0.00014248,2]
[419736907,1775345441324,-1005.31465094,0.00014248,2]
[419736908,1775345441333,-541.48,0.00014287,2]
[419736909,1775345441343,-185.76,0.00014293,2]
[419736910,1775345441352,-419.58,0.00014311,2]
[419736911,1775345441362,-218.0609158,0.0001434,2]
[419736912,1775345441372,-189.86,0.00014384,2]
[419736913,1775345441382,-150.0,0.000144,2]
[419736914,1775345441392,-150.0,0.000144,2]
[419736915,1775345441402,-150.0,0.000144,2]
[419736916,1775345441413,-150.0,0.000144,2]
[419736917,1775345441424,-150.0,0.000144,2]
[419736918,1775345441434,-150.0,0.000144,2]
[419736919,1775345441445,-150.0,0.000144,2]